fUST/lending_fUST_20250628
["ID","MTS","AMOUNT","RATE_DAILY","PERIOD"]
[368303467,1751104246459,-1284.62,0.00021095,2]
[368303468,1751104246468,-460.0,0.00021095,2]
[368303469,1751104246478,-460.0,0.00021095,2]
[368303470,1751104246487,-460.0,0.00021095,2]
[368303471,1751104246497,-460.0,0.00021095,2]
[368303472,1751104246506,-841.85,0.00021095,2]
[368303473,1751104246516,-3929.08,0.00021095,2]
[368303474,1751104246525,-460.0,0.00021095,2]
[368303475,1751104246535,-859.76,0.00021095,2]
[368303477,1751104246545,-460.0,0.00021095,2]
[368303479,1751104246554,-1249.38,0.00021095,2]
[368303480,1751104246563,-1398.58,0.00021095,2]
[368303481,1751104246573,-460.0,0.00021095,2]
[368303482,1751104246582,-1240.77,0.00021095,2]
[368303483,1751104246591,-184.67396051,0.00021095,2]
[368303484,1751104246600,-1289.3,0.00021095,2]
[368303485,1751104246609,-767.03,0.00021095,2]
[368303486,1751104246619,-151.0,0.00021111,4]
[368303487,1751104246629,-1500.0,0.00021129,2]
[368303488,1751104246638,-5000.0,0.0002113,2]
[368303489,1751104246648,-25000.0,0.0002113,2]
[368303490,1751104246657,-7889.39496715,0.00021141,4]
[368303491,1751104246666,-177.5104021,0.00021151,2]
[368303492,1751104246675,-1500.0,0.00021161,2]
[368303493,1751104246685,-153.0,0.00021178,2]
[368303494,1751104246694,-206.0,0.000212,2]
[368303495,1751104246703,-228.21662057,0.00021233,2]
[368303496,1751104246712,-170.43098,0.00021266,5]
[368303497,1751104246721,-151.0,0.00021339,4]
[368303498,1751104246730,-228.21662057,0.00021342,2]
[368303499,1751104246739,-7889.39496715,0.00021348,5]
[368303500,1751104246748,-460.0,0.00021369,2]
[368303501,1751104246757,-460.0,0.00021369,2]
[368303502,1751104246767,-500.0,0.00021369,16]
[368303503,1751104246777,-460.0,0.00021369,2]
[368303504,1751104246787,-460.0,0.00021369,2]
[368303505,1751104246796,-644.09,0.00021369,2]
[368303506,1751104246805,-460.0,0.00021369,2]
[368303507,1751104246815,-460.0,0.00021369,2]
[368303508,1751104246824,-490.46,0.00021369,2]
[368303509,1751104246833,-1087.34,0.00021369,2]
[368303510,1751104246843,-1749.26,0.00021369,2]
[368303511,1751104246852,-481.46,0.00021369,2]
[368303512,1751104246861,-460.0,0.00021369,2]
[368303513,1751104246870,-460.0,0.00021369,2]
[368303514,1751104246879,-853.9,0.00021369,2]
[368303515,1751104246888,-460.0,0.00021369,2]
[368303516,1751104246897,-460.0,0.00021369,2]
[368303517,1751104246906,-1919.85,0.00021369,2]
[368303518,1751104246916,-516.71,0.00021369,2]
[368303519,1751104246925,-727.6,0.00021369,2]
[368303520,1751104246935,-2052.3,0.00021369,2]
[368303521,1751104246944,-551.56,0.00021369,2]
[368303522,1751104246953,-460.0,0.00021369,2]
[368303523,1751104246962,-1731.5,0.00021369,2]
[368303524,1751104246971,-460.0,0.00021369,2]
[368303525,1751104246981,-460.0,0.00021369,2]
[368303526,1751104246990,-460.0,0.00021369,2]
[368303527,1751104246999,-460.0,0.00021369,2]
[368303528,1751104247008,-460.0,0.00021369,2]
[368303529,1751104247018,-460.0,0.00021369,2]
[368303530,1751104247028,-460.0,0.00021369,2]
[368303531,1751104247037,-2205.55,0.00021369,2]
[368303532,1751104247047,-460.0,0.00021369,2]
[368303533,1751104247056,-589.67,0.00021369,2]
[368303534,1751104247065,-817.34,0.00021369,2]
[368303535,1751104247075,-2719.66,0.00021369,2]
[368303536,1751104247085,-460.0,0.00021369,2]
[368303537,1751104247100,-460.0,0.00021369,2]
[368303538,1751104247110,-474.0,0.00021369,2]
[368303539,1751104247119,-1742.15,0.00021369,2]
[368303540,1751104247128,-1538.5,0.00021369,2]
[368303541,1751104247137,-460.0,0.00021369,2]
[368303542,1751104247146,-460.0,0.00021369,2]
[368303543,1751104247155,-3171.69,0.00021369,2]
[368303544,1751104247193,-1284.62,0.00021369,2]
[368303546,1751104247203,-460.0,0.00021369,2]
[368303547,1751104247212,-460.0,0.00021369,2]
[368303548,1751104247222,-460.0,0.00021369,2]
[368303549,1751104247231,-536.641073,0.00021369,2]
[368303550,1751104247241,-841.85,0.00021369,2]
[368303551,1751104247251,-3929.08,0.00021369,2]
[368303552,1751104247260,-460.0,0.00021369,2]
[368303553,1751104247269,-859.76,0.00021369,2]
[368303554,1751104247279,-460.0,0.00021369,2]
[368303555,1751104247288,-1249.38,0.00021369,2]
[368303556,1751104247298,-1398.58,0.00021369,2]
[368303557,1751104247308,-460.0,0.00021369,2]
[368303558,1751104247317,-1240.77,0.00021369,2]
[368303559,1751104247327,-1289.3,0.00021369,2]
[368303560,1751104247338,-767.03,0.00021369,2]
[368303561,1751104247348,-160.0,0.00021372,4]
[368303562,1751104247358,-1500.0,0.00021444,2]
[368303563,1751104247368,-228.21662057,0.00021452,2]
[368303564,1751104247378,-206.0,0.0002148,2]
[368303565,1751104247389,-170.43098,0.00021495,6]
[368303566,1751104247399,-7889.39496715,0.00021555,5]
[368303567,1751104247409,-538.906069,0.0002156,4]
[368303568,1751104247419,-228.21662057,0.00021562,2]
[368303569,1751104247429,-151.0,0.00021568,5]
[368303570,1751104247440,-160.0,0.00021582,2]
[368303571,1751104247449,-501.07304202,0.00021582,2]
[368303572,1751104247460,-1340.0,0.00021627,2]
[368303573,1751104247469,-60109.47098,0.00021632,2]
[368303574,1751104247479,-160.0,0.00021633,2]
[368303575,1751104247489,-160.0,0.00021633,2]
[368303576,1751104247498,-502.89520889,0.00021633,2]
[368303577,1751104247508,-160.0,0.00021633,2]
[368303578,1751104247518,-500.0,0.00021633,2]
[368303579,1751104247527,-160.0,0.00021633,2]
[368303580,1751104247536,-460.0,0.00021643,2]
[368303581,1751104247546,-460.0,0.00021643,2]
[368303582,1751104247555,-460.0,0.00021643,2]
[368303583,1751104247564,-460.0,0.00021643,2]
[368303584,1751104247573,-644.09,0.00021643,2]
[368303585,1751104247585,-460.0,0.00021643,2]
[368303586,1751104247595,-460.0,0.00021643,2]
[368303587,1751104247604,-490.46,0.00021643,2]
[368303588,1751104247613,-1087.34,0.00021643,2]
[368303589,1751104247622,-1749.26,0.00021643,2]
[368303590,1751104247632,-481.46,0.00021643,2]
[368303591,1751104247641,-460.0,0.00021643,2]
[368303592,1751104247650,-460.0,0.00021643,2]
[368303593,1751104247659,-853.9,0.00021643,2]
[368303594,1751104247668,-460.0,0.00021643,2]
[368303595,1751104247678,-460.0,0.00021643,2]
[368303596,1751104247688,-1919.85,0.00021643,2]
[368303597,1751104247697,-516.71,0.00021643,2]
[368303598,1751104247706,-727.6,0.00021643,2]
[368303599,1751104247715,-2052.3,0.00021643,2]
[368303600,1751104247724,-551.56,0.00021643,2]
[368303601,1751104247734,-460.0,0.00021643,2]
[368303602,1751104247744,-1731.5,0.00021643,2]
[368303603,1751104247753,-460.0,0.00021643,2]
[368303604,1751104247763,-460.0,0.00021643,2]
[368303605,1751104247772,-460.0,0.00021643,2]
[368303606,1751104247783,-460.0,0.00021643,2]
[368303607,1751104247793,-460.0,0.00021643,2]
[368303608,1751104247802,-460.0,0.00021643,2]
[368303609,1751104247811,-2205.55,0.00021643,2]
[368303610,1751104247821,-460.0,0.00021643,2]
[368303611,1751104247831,-460.0,0.00021643,2]
[368303612,1751104247841,-589.67,0.00021643,2]
[368303613,1751104247850,-817.34,0.00021643,2]
[368303614,1751104247859,-2719.66,0.00021643,2]
[368303615,1751104247868,-460.0,0.00021643,2]
[368303616,1751104247877,-460.0,0.00021643,2]
[368303617,1751104247887,-155.0,0.00021643,2]
[368303618,1751104247897,-474.0,0.00021643,2]
[368303619,1751104247906,-1742.15,0.00021643,2]
[368303620,1751104247915,-1538.5,0.00021643,2]
[368303621,1751104247924,-460.0,0.00021643,2]
[368303622,1751104247933,-460.0,0.00021643,2]
[368303623,1751104247943,-3171.69,0.00021643,2]
[368303624,1751104247952,-1284.62,0.00021643,2]
[368303625,1751104247961,-334.15595049,0.00021643,2]
[368303626,1751104247970,-460.0,0.00021643,2]
[368303627,1751104247979,-460.0,0.00021643,2]
[368303628,1751104247989,-841.85,0.00021643,2]
[368303629,1751104247999,-3929.08,0.00021643,2]
[368303630,1751104248008,-460.0,0.00021643,2]
[368303631,1751104248019,-859.76,0.00021643,2]
[368303632,1751104248027,-460.0,0.00021643,2]
[368303633,1751104248037,-1249.38,0.00021643,2]
[368303634,1751104248047,-1398.58,0.00021643,2]
[368303635,1751104248056,-460.0,0.00021643,2]
[368303636,1751104248066,-1240.77,0.00021643,2]
[368303637,1751104248076,-1289.3,0.00021643,2]
[368303638,1751104248086,-767.03,0.00021643,2]
[368303639,1751104248096,-228.21662057,0.00021644,2]
[368303640,1751104248110,-2000.0,0.00021677,2]
[368303641,1751104248121,-5000.0,0.00021678,2]
[368303642,1751104248131,-881.0,0.0002169,2]
[368303643,1751104248141,-465.0,0.00021708,2]
[368303644,1751104248152,-2000.0,0.00021709,2]
[368303645,1751104248162,-465.0,0.00021718,2]
[368303646,1751104248172,-465.0,0.00021732,2]
[368303647,1751104248182,-206.0,0.0002175,2]
[368303648,1751104248193,-228.21662057,0.00021753,2]
[368303649,1751104248202,-7889.39496715,0.00021762,5]
[368303650,1751104248212,-409.30435699,0.0002178,17]
[368303651,1751104248222,-7054.58916906,0.0002178,2]
[368303652,1751104248232,-151.0,0.00021797,5]
[368303653,1751104248242,-150.0,0.000218,2]
[368303654,1751104248253,-3418.08,0.000218,2]
[368303655,1751104248263,-1340.0,0.00021816,2]
[368303656,1751104248273,-465.0,0.00021843,2]
[368303657,1751104248283,-228.21662057,0.00021863,2]
[368303658,1751104248292,-170.43098,0.00021868,7]
[368303659,1751104248302,-500.0,0.0002188,2]
[368303660,1751104248312,-500.0,0.0002188,2]
[368303661,1751104248322,-500.0,0.0002188,2]
[368303662,1751104248332,-500.0,0.0002188,2]
[368303663,1751104248342,-10000.00001,0.000219,15]
[368303664,1751104248351,-18288.517,0.000219,2]
[368303665,1751104248361,-968.174,0.00021908,2]
[368303666,1751104248371,-2161.0,0.00021908,2]
[368303667,1751104248381,-654.0,0.00021908,2]
[368303668,1751104248391,-11205.1851829,0.00021917,2]
[368303669,1751104248400,-460.0,0.00021917,2]
[368303670,1751104248411,-460.0,0.00021917,2]
[368303671,1751104248421,-460.0,0.00021917,2]
[368303672,1751104248430,-460.0,0.00021917,2]
[368303673,1751104248440,-644.09,0.00021917,2]
[368303674,1751104248450,-460.0,0.00021917,2]
[368303675,1751104248459,-460.0,0.00021917,2]
[368303676,1751104248469,-490.46,0.00021917,2]
[368303677,1751104248478,-1087.34,0.00021917,2]
[368303678,1751104248489,-1749.26,0.00021917,2]
[368303679,1751104248498,-481.46,0.00021917,2]
[368303680,1751104248507,-460.0,0.00021917,2]
[368303681,1751104248517,-460.0,0.00021917,2]
[368303682,1751104248527,-853.9,0.00021917,2]
[368303683,1751104248536,-460.0,0.00021917,2]
[368303684,1751104248546,-460.0,0.00021917,2]
[368303685,1751104248556,-1919.85,0.00021917,2]
[368303686,1751104248565,-516.71,0.00021917,2]
[368303687,1751104248574,-727.6,0.00021917,2]
[368303688,1751104248583,-2052.3,0.00021917,2]
[368303689,1751104248593,-551.56,0.00021917,2]
[368303690,1751104248603,-460.0,0.00021917,2]
[368303691,1751104248613,-1731.5,0.00021917,2]
[368303692,1751104248623,-460.0,0.00021917,2]
[368303693,1751104248632,-460.0,0.00021917,2]
[368303694,1751104248642,-460.0,0.00021917,2]
[368303695,1751104248651,-460.0,0.00021917,2]
[368303696,1751104248661,-274.13849823,0.00021917,2]
[368303697,1751104248777,-185.86150177,0.00021917,2]
[368303698,1751104248787,-460.0,0.00021917,2]
[368303699,1751104248797,-2205.55,0.00021917,2]
[368303700,1751104248807,-460.0,0.00021917,2]
[368303701,1751104248817,-460.0,0.00021917,2]
[368303702,1751104248827,-589.67,0.00021917,2]
[368303703,1751104248836,-817.34,0.00021917,2]
[368303704,1751104248846,-963.38551792,0.00021917,2]
[368303705,1751104249038,-295.16840357,0.00020399,2]
[368303706,1751104249049,-406.0,0.00021908,2]
[368303707,1751104249059,-1756.27448208,0.00021917,2]
[368303708,1751104249068,-460.0,0.00021917,2]
[368303709,1751104249078,-460.0,0.00021917,2]
[368303710,1751104249088,-474.0,0.00021917,2]
[368303711,1751104249102,-1742.15,0.00021917,2]
[368303712,1751104249112,-1538.5,0.00021917,2]
[368303713,1751104249122,-460.0,0.00021917,2]
[368303714,1751104249132,-460.0,0.00021917,2]
[368303715,1751104249141,-3171.69,0.00021917,2]
[368303716,1751104249151,-1030.1593991,0.00021917,2]
[368303717,1751104249164,-254.4606009,0.00021917,2]
[368303718,1751104249174,-48.9693991,0.00021917,2]
[368303721,1751104693898,5000.0,0.00018,2]
[368303722,1751104694069,5000.0,0.00018,2]
[368303723,1751104694257,1012.88589331,0.00018,2]
[368303724,1751104694280,3987.11410669,0.00018,2]
[368303725,1751104694624,5000.0,0.00018,2]
[368303726,1751104694797,5000.0,0.00018,2]
[368303727,1751104694971,2018.2104425,0.00018,2]
[368303729,1751104705317,265.368066,0.00013699,2]
[368303730,1751104876372,3729.30738481,0.00018,2]
[368303731,1751104876400,1270.69261519,0.00018,2]
[368303732,1751104876559,5000.0,0.00018,2]
[368303733,1751104876760,5000.0,0.00018,2]
[368303734,1751104876954,5000.0,0.00018,2]
[368303737,1751105144157,-1000.0,0.00018517,2]
[368303738,1751105144178,-185.38818488,0.00019,2]
[368303739,1751105144198,-192.98277901,0.00019078,2]
[368303740,1751105144218,-300.0,0.00019172,2]
[368303741,1751105144239,-500.0,0.00019173,2]
[368303742,1751105144261,-500.0,0.00019173,2]
[368303743,1751105144283,-290.3134,0.00019173,2]
[368303744,1751105144302,-300.0,0.00019173,2]
[368303745,1751105144327,-300.0,0.00019173,2]
[368303746,1751105144346,-300.0,0.00019173,2]
[368303747,1751105144367,-1200.0,0.00019173,2]
[368303748,1751105144387,-10722.71412239,0.00019174,2]
[368303749,1751105236082,-300.0,0.00019172,2]
[368303750,1751105236108,-287.1658826,0.00019173,2]
[368303751,1751105236131,-90.95423152,0.00019173,2]
[368303757,1751105416095,3729.30738481,0.00018096,2]
[368303758,1751105416140,20000.0,0.00018096,2]
[368303759,1751105416163,1170.69261519,0.00018096,2]
[368303778,1751105431981,-1000.0,0.00018517,2]
[368303779,1751105431991,-168.85993166,0.00018973,2]
[368303780,1751105432000,-168.0,0.00019071,2]
[368303781,1751105432010,-300.0,0.00019071,2]
[368303782,1751105432020,-300.0,0.00019071,2]
[368303783,1751105432029,-500.0,0.00019072,2]
[368303784,1751105432039,-500.64229475,0.00019072,2]
[368303785,1751105432050,-500.0,0.00019072,2]
[368303786,1751105432060,-500.0,0.00019072,2]
[368303787,1751105432069,-500.0,0.00019072,2]
[368303788,1751105432079,-500.0,0.00019072,2]
[368303789,1751105432088,-361.33053944,0.00019072,2]
[368303790,1751105432098,-500.0,0.00019072,2]
[368303791,1751105432107,-500.0,0.00019072,2]
[368303792,1751105432116,-500.0,0.00019072,2]
[368303793,1751105432126,-500.0,0.00019072,2]
[368303794,1751105432135,-500.0,0.00019072,2]
[368303795,1751105432144,-500.0,0.00019072,2]
[368303797,1751105432154,-500.0,0.00019072,2]
[368303798,1751105432163,-500.0,0.00019072,2]
[368303799,1751105432172,-89.42103538,0.00019072,2]
[368303800,1751105432183,-405.30738664,0.00019072,2]
[368303801,1751105432192,-381.61948154,0.00019072,2]
[368303802,1751105432202,-500.0,0.00019072,2]
[368303803,1751105432211,-500.0,0.00019072,2]
[368303804,1751105432220,-500.0,0.00019072,2]
[368303805,1751105432229,-500.0,0.00019072,2]
[368303806,1751105432239,-553.8,0.00019072,2]
[368303807,1751105432248,-500.0,0.00019072,2]
[368303808,1751105432257,-500.0,0.00019072,2]
[368303809,1751105432267,-500.0,0.00019072,2]
[368303810,1751105432276,-500.0,0.00019072,2]
[368303811,1751105432286,-500.0,0.00019072,2]
[368303812,1751105432297,-385.87652528,0.00019072,2]
[368303813,1751105432307,-500.0,0.00019072,2]
[368303814,1751105432317,-500.0,0.00019072,2]
[368303815,1751105432326,-500.0,0.00019072,2]
[368303816,1751105432335,-267.75878866,0.00019072,2]
[368303817,1751105432345,-500.0,0.00019072,2]
[368303818,1751105432354,-500.0,0.00019072,2]
[368303819,1751105432364,-500.0,0.00019072,2]
[368303820,1751105432373,-499.99999999,0.00019072,2]
[368303821,1751105432383,-39277.28587761,0.00019072,2]
[368303822,1751105432392,-50101.04748109,0.00019073,2]
[368303823,1751105432401,-187.61,0.00019168,3]
[368303824,1751105432410,-562.87,0.00019168,3]
[368303825,1751105432419,-409.04576848,0.00019173,2]
[368303826,1751105432571,-500.0,0.00019173,2]
[368303827,1751105432581,-1200.0,0.00019173,2]
[368303828,1751105432590,-1000.0,0.00019177,2]
[368303829,1751105432599,-1014.49140605,0.00019177,2]
[368303830,1751105432608,-211.22678497,0.00019177,2]
[368303831,1751105432618,-317.69102557,0.00019177,2]
[368303832,1751105432627,-544.34120127,0.00019178,2]
[368303833,1751105432636,-540.0,0.00019178,2]
[368303834,1751105432645,-460.0,0.00019178,2]
[368303835,1751105432654,-460.0,0.00019178,2]
[368303836,1751105432663,-460.0,0.00019178,2]
[368303837,1751105432672,-430.0,0.00019178,2]
[368303838,1751105432682,-460.0,0.00019178,2]
[368303839,1751105432691,-186.36518987,0.00019178,2]
[368303840,1751105432700,-460.0,0.00019178,2]
[368303841,1751105432710,-460.0,0.00019178,2]
[368303842,1751105432720,-460.0,0.00019178,2]
[368303843,1751105432729,-460.0,0.00019178,2]
[368303844,1751105432738,-460.0,0.00019178,2]
[368303845,1751105432747,-460.0,0.00019178,2]
[368303846,1751105432760,-282.09363377,0.00019178,2]
[368303847,1751105432771,-460.0,0.00019178,2]
[368303848,1751105432782,-460.0,0.00019178,2]
[368303849,1751105432792,-460.0,0.00019178,2]
[368303850,1751105432803,-460.0,0.00019178,2]
[368303851,1751105432812,-460.0,0.00019178,2]
[368303852,1751105432822,-460.0,0.00019178,2]
[368303853,1751105432831,-460.0,0.00019178,2]
[368303854,1751105432840,-426.75246136,0.00019178,2]
[368303855,1751105432850,-460.0,0.00019178,2]
[368303856,1751105432859,-460.0,0.00019178,2]
[368303857,1751105432869,-461.4650271,0.00019178,2]
[368303858,1751105432878,-468.57960605,0.00019178,2]
[368303859,1751105432887,-460.0,0.00019178,2]
[368303860,1751105432899,-442.76133526,0.00019178,2]
[368303861,1751105432908,-461.08430158,0.00019178,2]
[368303862,1751105432918,-460.0,0.00019178,2]
[368303863,1751105432928,-1000.0,0.00019178,2]
[368303864,1751105432940,-460.0,0.00019178,2]
[368303865,1751105432950,-460.0,0.00019178,2]
[368303866,1751105432960,-462.45484069,0.00019178,2]
[368303867,1751105432970,-419.8320607,0.00019178,2]
[368303868,1751105432980,-221.6032939,0.00019178,2]
[368303869,1751105432994,-238.3967061,0.00019178,2]
[368303870,1751105433004,-460.0,0.00019178,2]
[368303871,1751105433013,-239.8632939,0.00019178,2]
[368303872,1751105433025,-220.1367061,0.00019178,2]
[368303873,1751105433034,-463.69752791,0.00019178,2]
[368303874,1751105433044,-306.22924127,0.00019178,2]
[368303875,1751105433061,-147.69660434,0.00019178,2]
[368303876,1751105433070,-460.0,0.00019178,2]
[368303877,1751105433080,-408.44251934,0.00019178,2]
[368303878,1751105433089,-468.23981492,0.00019178,2]
[368303879,1751105433099,-460.0,0.00019178,2]
[368303880,1751105433109,-461.13946558,0.00019178,2]
[368303881,1751105433118,-460.0,0.00019178,2]
[368303882,1751105433128,-463.19766414,0.00019178,2]
[368303883,1751105433137,-460.0,0.00019178,2]
[368303884,1751105433147,-460.0,0.00019178,2]
[368303885,1751105433156,-460.0,0.00019178,2]
[368303886,1751105433166,-460.0,0.00019178,2]
[368303887,1751105433175,-460.0,0.00019178,2]
[368303888,1751105433185,-460.0,0.00019178,2]
[368303889,1751105433195,-460.0,0.00019178,2]
[368303890,1751105433204,-460.0,0.00019178,2]
[368303891,1751105433214,-460.0,0.00019178,2]
[368303892,1751105433223,-460.0,0.00019178,2]
[368303893,1751105433232,-460.0,0.00019178,2]
[368303894,1751105433242,-450.36509458,0.00019178,2]
[368303895,1751105433252,-460.0,0.00019178,2]
[368303896,1751105433261,-460.0,0.00019178,2]
[368303897,1751105433270,-460.0,0.00019178,2]
[368303898,1751105433280,-460.0,0.00019178,2]
[368303899,1751105433289,-460.0,0.00019178,2]
[368303900,1751105433299,-460.0,0.00019178,2]
[368303901,1751105433309,-460.0,0.00019178,2]
[368303902,1751105433319,-1078.83,0.00019178,2]
[368303903,1751105433328,-460.0,0.00019178,2]
[368303904,1751105433337,-460.0,0.00019178,2]
[368303905,1751105433347,-460.0,0.00019178,2]
[368303906,1751105433356,-460.0,0.00019178,2]
[368303907,1751105433365,-460.0,0.00019178,2]
[368303908,1751105433376,-214.90005467,0.00019178,2]
[368303909,1751105433386,-406.77848649,0.00019178,2]
[368303910,1751105433396,-103.66719296,0.00019178,2]
[368303914,1751105437911,-500.0,0.00019177,2]
[368303915,1751105437921,-356.33280704,0.00019178,2]
[368303916,1751105437931,-460.0,0.00019178,2]
[368303917,1751105437940,-463.19751842,0.00019178,2]
[368303918,1751105437950,-460.0,0.00019178,2]
[368303919,1751105437959,-468.36743916,0.00019178,2]
[368303920,1751105437968,-460.0,0.00019178,2]
[368303921,1751105437978,-460.0,0.00019178,2]
[368303922,1751105437987,-460.0,0.00019178,2]
[368303923,1751105437997,-460.0,0.00019178,2]
[368303924,1751105438006,-460.0,0.00019178,2]
[368303925,1751105438016,-460.0,0.00019178,2]
[368303926,1751105438025,-460.0,0.00019178,2]
[368303927,1751105438034,-454.0,0.00019178,2]
[368303928,1751105438044,-460.0,0.00019178,2]
[368303929,1751105438054,-460.0,0.00019178,2]
[368303930,1751105438063,-460.0,0.00019178,2]
[368303931,1751105438073,-460.0,0.00019178,2]
[368303932,1751105438082,-460.0,0.00019178,2]
[368303933,1751105438091,-460.0,0.00019178,2]
[368303934,1751105438101,-460.0,0.00019178,2]
[368303935,1751105438110,-460.0,0.00019178,2]
[368303936,1751105438120,-460.0,0.00019178,2]
[368303937,1751105438129,-460.0,0.00019178,2]
[368303938,1751105438139,-460.0,0.00019178,2]
[368303939,1751105438148,-460.0,0.00019178,2]
[368303940,1751105438158,-460.0,0.00019178,2]
[368303941,1751105438167,-460.0,0.00019178,2]
[368303942,1751105438185,-460.0,0.00019178,2]
[368303943,1751105438197,-460.0,0.00019178,2]
[368303944,1751105438207,-460.0,0.00019178,2]
[368303945,1751105438216,-460.0,0.00019178,2]
[368303946,1751105438226,-460.0,0.00019178,2]
[368303947,1751105438236,-403.48951065,0.00019178,2]
[368303948,1751105438245,-460.0,0.00019178,2]
[368303949,1751105438255,-460.0,0.00019178,2]
[368303950,1751105438265,-460.0,0.00019178,2]
[368303951,1751105438275,-400.81107327,0.00019178,2]
[368303952,1751105438286,-460.0,0.00019178,2]
[368303953,1751105438296,-460.0,0.00019178,2]
[368303954,1751105438306,-460.0,0.00019178,2]
[368303955,1751105438315,-464.00161492,0.00019178,2]
[368303956,1751105438325,-468.49129099,0.00019178,2]
[368303957,1751105438335,-580.0,0.00019178,2]
[368303958,1751105438344,-460.0,0.00019178,2]
[368303959,1751105438354,-542.13907655,0.00019178,2]
[368303960,1751105438364,-488.53641425,0.00019178,2]
[368303961,1751105438377,-162.43068417,0.00019178,2]
[368303962,1751105438386,-163.68721255,0.00019178,2]
[368303963,1751105438396,-460.0,0.00019178,2]
[368303964,1751105438406,-460.0,0.00019178,2]
[368303965,1751105438415,-500.0,0.00019178,2]
[368303966,1751105438425,-353.9570688,0.00019178,2]
[368303967,1751105438435,-460.0,0.00019178,2]
[368303968,1751105438444,-460.0,0.00019178,2]
[368303969,1751105438454,-463.87550074,0.00019178,2]
[368303970,1751105438464,-463.04890327,0.00019178,2]
[368303971,1751105438474,-460.0,0.00019178,2]
[368303972,1751105438484,-460.0,0.00019178,2]
[368303973,1751105438493,-460.0,0.00019178,2]
[368303974,1751105438503,-460.0,0.00019178,2]
[368303975,1751105438513,-460.0,0.00019178,2]
[368303976,1751105438522,-464.41560086,0.00019178,2]
[368303977,1751105438532,-460.0,0.00019178,2]
[368303978,1751105438542,-460.0,0.00019178,2]
[368303979,1751105438551,-501.61248782,0.00019178,2]
[368303980,1751105438561,-460.0,0.00019178,2]
[368303981,1751105438570,-466.35183214,0.00019178,2]
[368303982,1751105438580,-460.0,0.00019178,2]
[368303983,1751105438589,-460.0,0.00019178,2]
[368303984,1751105438598,-460.0,0.00019178,2]
[368303985,1751105438608,-460.0,0.00019178,2]
[368303986,1751105438618,-460.0,0.00019178,2]
[368303987,1751105438627,-685.39,0.00019178,2]
[368303988,1751105438637,-460.0,0.00019178,2]
[368303989,1751105438647,-460.0,0.00019178,2]
[368303990,1751105438657,-460.0,0.00019178,2]
[368303991,1751105438666,-460.0,0.00019178,2]
[368303992,1751105438676,-460.0,0.00019178,2]
[368303993,1751105438685,-460.0,0.00019178,2]
[368303994,1751105438696,-460.0,0.00019178,2]
[368303995,1751105438707,-460.0,0.00019178,2]
[368303996,1751105438717,-460.0,0.00019178,2]
[368303997,1751105438727,-460.0,0.00019178,2]
[368303998,1751105438737,-381.91533352,0.00019178,2]
[368303999,1751105438746,-460.0,0.00019178,2]
[368304000,1751105438755,-460.0,0.00019178,2]
[368304001,1751105438765,-587.86249384,0.00019178,2]